[Event "Portugal Honour 2021"]
[Site "Fatima"]
[Date "2021.04.10"]
[Round "7.4"]
[White "Santos, Ruben"]
[Black "Santos, Julio"]
[Result "1-0"]
[ECO "D31"]
[WhiteElo "1759"]
[BlackElo "1884"]
[Annotator "NA RC"]
[PlyCount "81"]
[EventDate "2021.04.06"]
[EventType "tourn"]
[EventCountry "POR"]
[SourceTitle "playchess.com"]
[Source "ChessBase"]
[SourceQuality "1"]
[TimeControl "5400+30"]

1. d4 {[%emt 0:00:00]} d5 {[%emt 0:00:00]} 2. c4 {[%emt 0:00:00]} e6 {[%emt 0:00:26]} 3. Nc3 {[%emt 0:00:04]} g6 {[%emt 0:01:53]} 4. Bf4 {[%emt 0:00:51]} Bg7 {[%emt 0:01:00]} 5. e3 {[%emt 0:00:09]} b6 {[%emt 0:02:44]} 6. cxd5 {[%emt 0:01:21]} exd5 {[%emt 0:00:10]} 7. Rc1 {[%emt 0:00:25]} c6 {[%emt 0:03:20]} 8. Bd3 {[%emt 0:01:12]} Nf6 {[%emt 0:02:16]} 9. h3 {[%emt 0:00:14]} O-O {[%emt 0:00:26]} 10. Nf3 {[%emt 0:00:06]} Re8 {[%emt 0:00:27]} 11. O-O {[%emt 0:00:11]} Ba6 {[%emt 0:05:27]} 12. b4 {[%emt 0:00:30]} Bxd3 {[%emt 0:01:15]} 13. Qxd3 {[%emt 0:00:08]} b5 {[%emt 0:02:04]} 14. Ne2 {[%emt 0:01:41]} Ne4 {[%emt 0:03:53]} 15. Bxb8 {[%emt 0:07:54]} Rxb8 {[%emt 0:00:26]} 16. Rxc6 {[%emt 0:00:08]} Bf8 {[%emt 0:07:32]} 17. Qb3 {[%emt 0:01:56]} Re6 {[%emt 0:02:31]} 18. Rfc1 $18 {[%emt 0:01:11]} g5 {[%emt 0:08:06]} 19. a3 {[%emt 0:04:38]} h5 {[%emt 0:00:38]} 20. Ne5 {[%emt 0:03:10]} Bg7 {[%emt 0:02:08]} 21. Rxe6 {[%emt 0:02:06]} fxe6 {[%emt 0:00:08]} 22. Nc6 {[%emt 0:00:36]} Qf8 {[%emt 0:03:57]} 23. f3 {[%emt 0:00:19]} Nd2 {[%emt 0:00:08]} 24. Qd3 {[%emt 0:00:51]} Nc4 {[%emt 0:00:55]} 25. Nxb8 {[%emt 0:00:21]} Qxb8 {[%emt 0:00:01]} 26. Qg6 {[%emt 0:00:49]} Qb6 {[%emt 0:07:32]} 27. Ng3 {[%emt 0:00:28]} e5 {[%emt 0:02:27]} 28. Qxg5 {[%emt 0:01:51]} Kf8 {[%emt 0:04:59]} 29. Nxh5 {[%emt 0:00:16]} Bh6 {[%emt 0:00:38]} 30. Qf5+ {[%emt 0:00:37]} Ke7 {[%emt 0:00:14]} 31. f4 {[%emt 0:03:24]} exd4 {[%emt 0:01:25]} 32. exd4 {[%emt 0:05:57]} Qxd4+ {[%emt 0:00:37]} 33. Kh2 {[%emt 0:02:32]} Qd2 {[%emt 0:03:06]} 34. Rc2 {[%emt 0:00:29]} Qd1 {[%emt 0:00:25]} 35. Nf6 {[%emt 0:02:17]} Bxf4+ {[%emt 0:00:45]} 36. g3 {[%emt 0:04:03]} Be5 {[%emt 0:00:49]} 37. Ng8+ {[%emt 0:00:43]} Ke8 {[%emt 0:03:31]} 38. Rf2 {[%emt 0:01:42]} Bxg3+ {[%emt 0:02:07]} 39. Kxg3 {[%emt 0:00:10]} Qg1+ {[%emt 0:00:18]} 40. Kh4 {[%emt 0:00:14]} Qxg8 {[%emt 0:00:20]} 41. Qc8+ {[%emt 0:00:07]} 1-0

[Event "Portugal Honour 2021"]
[Site "Fatima"]
[Date "2021.04.10"]
[Round "7.5"]
[White "Lavrador, Rodolfo"]
[Black "Barrento, Jorge"]
[Result "0-1"]
[ECO "B02"]
[WhiteElo "1815"]
[BlackElo "1724"]
[Annotator "NA RC"]
[PlyCount "38"]
[EventDate "2021.04.06"]
[EventType "tourn"]
[EventCountry "POR"]
[SourceTitle "playchess.com"]
[Source "ChessBase"]
[SourceQuality "1"]
[TimeControl "5400+30"]

1. e4 d5 2. exd5 {[%emt 0:00:00]} Nf6 {[%emt 0:00:00]} 3. Nc3 {[%emt 0:00:00]} Nxd5 {[%emt 0:00:51]} 4. Nxd5 {[%emt 0:00:10]} Qxd5 {[%emt 0:00:08]} 5. Nf3 {[%emt 0:00:09]} Bg4 {[%emt 0:00:21]} 6. Be2 {[%emt 0:00:12]} Nc6 {[%emt 0:00:04]} 7. O-O {[%emt 0:00:57]} O-O-O {[%emt 0:00:50]} 8. d3 {[%emt 0:08:22]} e5 {[%emt 0:03:44]} 9. c4 Qd7 {[%emt 0:08:40]} 10. Be3 {[%emt 0:06:53]} f6 {[%emt 0:00:30]} 11. Qa4 {[%emt 0:00:52]} Kb8 {[%emt 0:02:06]} 12. Rfd1 {[%emt 0:00:55]} Nd4 {[%emt 0:00:17]} 13. Qa5 $2 {[%emt 0:04:16]} (13. Qxd7 $17 {nothing else works.} Nxe2+ 14. Kf1 Rxd7 15. Kxe2) 13... Nxe2+ {[%emt 0:01:54]} 14. Kf1 {[%emt 0:00:06]} Nd4 {[%emt 0:00:09]} 15. b4 {[%emt 0:01:21]} b6 {[%emt 0:00:48]} 16. Qa6 {[%emt 0:00:35]} Bxf3 {[%emt 0:05:22]} 17. gxf3 {[%emt 0:00:25]} Qh3+ {[%emt 0:00:12] Double Attack} 18. Ke1 {[%emt 0:00:19]} Bxb4+ {[%emt 0:02:22]} 19. Bd2 {[%emt 0:00:28]} Qxf3 {[%emt 0:00:16]} 0-1

[Event "Portugal Honour 2021"]
[Site "Fatima"]
[Date "2021.04.11"]
[Round "8.1"]
[White "Goncalves, Carlos"]
[Black "Barrento, Jorge"]
[Result "1/2-1/2"]
[ECO "A46"]
[WhiteElo "1600"]
[BlackElo "1724"]
[Annotator "NA RC"]
[PlyCount "79"]
[EventDate "2021.04.06"]
[EventType "tourn"]
[EventCountry "POR"]
[SourceTitle "playchess.com"]
[Source "ChessBase"]
[SourceQuality "1"]
[TimeControl "5400+30"]

1. Nf3 {[%emt 0:02:53]} Nf6 {[%emt 0:00:30]} 2. g3 {[%emt 0:00:27]} b5 {[%emt 0:00:23]} 3. Bg2 {[%emt 0:01:44]} Bb7 {[%emt 0:01:29]} 4. O-O {[%emt 0:00:17]} e6 {[%emt 0:00:21]} 5. d4 {[%emt 0:03:00]} c5 {[%emt 0:02:05]} 6. c3 {[%emt 0:00:43]} Be7 {[%emt 0:01:00]} 7. Bf4 {[%emt 0:07:27]} d5 {[%emt 0:02:48]} 8. Nbd2 {[%emt 0:00:40]} O-O {[%emt 0:01:33]} 9. Bxb8 {[%emt 0:03:42]} Qxb8 {[%emt 0:05:07]} 10. Nb3 {[%emt 0:00:15]} Qc7 {[%emt 0:01:04]} 11. e3 {[%emt 0:04:19]} c4 {[%emt 0:01:42]} 12. Nbd2 {[%emt 0:00:22]} a5 {[%emt 0:00:32]} 13. Ne5 {[%emt 0:04:54]} b4 {[%emt 0:08:39]} 14. h4 {[%emt 0:00:27]} a4 {[%emt 0:01:56]} 15. cxb4 {[%emt 0:06:00]} Bxb4 {[%emt 0:01:54]} 16. Rc1 {[%emt 0:00:30]} Qa5 {[%emt 0:01:09]} 17. Ndxc4 {[%emt 0:01:10]} Qa6 {[%emt 0:07:31]} 18. Nd2 {[%emt 0:03:08]} Qb6 {[%emt 0:02:29]} 19. g4 {[%emt 0:01:25]} Qd8 {[%emt 0:08:56]} 20. g5 {[%emt 0:02:28]} Nd7 {[%emt 0:04:29]} 21. Nc6 {[%emt 0:03:25]} Bxc6 {[%emt 0:02:17]} 22. Rxc6 {[%emt 0:00:10]} Nb8 {[%emt 0:01:08]} 23. Rc2 {[%emt 0:01:01]} a3 {[%emt 0:05:14]} 24. b3 {[%emt 0:02:58]} f5 {[%emt 0:00:37]} 25. f4 {[%emt 0:02:58]} Na6 {[%emt 0:01:02]} 26. Qe2 {[%emt 0:01:29]} Bd6 {[%emt 0:03:42]} 27. Nb1 {[%emt 0:08:37]} Nb4 {[%emt 0:01:49]} 28. Rd2 {[%emt 0:00:47]} g6 {[%emt 0:00:56]} 29. Nc3 {[%emt 0:04:28]} Ra5 {[%emt 0:03:43]} 30. Rc1 {[%emt 0:03:54]} Qd7 {[%emt 0:03:22]} 31. Na4 {[%emt 0:00:28]} Rc8 {[%emt 0:00:47]} 32. Rdd1 {[%emt 0:02:23]} Qb7 {[%emt 0:03:07]} 33. Qd2 {[%emt 0:05:38]} Kf7 {[%emt 0:07:54]} 34. Rxc8 {[%emt 0:01:07]} Qxc8 {[%emt 0:00:06]} 35. Rc1 {[%emt 0:01:12]} Qb8 {[%emt 0:01:45]} 36. Nc5 {[%emt 0:01:40]} Ra7 {[%emt 0:01:56]} 37. Nd3 {[%emt 0:01:07]} Nxd3 {[%emt 0:01:54]} 38. Qxd3 {[%emt 0:00:04]} Rc7 {[%emt 0:00:53]} 39. Rxc7+ Qxc7 40. Qd2 1/2-1/2

[Event "Portugal Honour 2021"]
[Site "Fatima"]
[Date "2021.04.11"]
[Round "8.2"]
[White "Santos, Julio"]
[Black "Lavrador, Rodolfo"]
[Result "0-1"]
[ECO "A85"]
[WhiteElo "1884"]
[BlackElo "1815"]
[Annotator "NA RC"]
[PlyCount "70"]
[EventDate "2021.04.06"]
[EventType "tourn"]
[EventCountry "POR"]
[SourceTitle "playchess.com"]
[Source "ChessBase"]
[SourceQuality "1"]
[TimeControl "5400+30"]

1. d4 {[%emt 0:00:00]} e6 2. c4 Bb4+ {[%emt 0:00:57]} 3. Nc3 {[%emt 0:00:15]} f5 {[%emt 0:00:14]} 4. Bf4 {[%emt 0:02:56]} Nf6 {[%emt 0:00:47]} 5. a3 {[%emt 0:00:53]} Bxc3+ {[%emt 0:00:25]} 6. bxc3 {[%emt 0:00:20]} O-O {[%emt 0:00:17]} 7. e3 {[%emt 0:01:36]} b6 {[%emt 0:01:20]} 8. h4 {[%emt 0:00:48]} Bb7 {[%emt 0:00:33]} 9. Nf3 {[%emt 0:02:28]} d6 {[%emt 0:00:33]} 10. Qc2 {[%emt 0:14:32]} Nbd7 {[%emt 0:01:48]} 11. O-O-O {[%emt 0:02:11]} Qe8 {[%emt 0:01:18]} 12. Ng1 {[%emt 0:11:41]} e5 {[%emt 0:06:18]} 13. Bg5 {[%emt 0:01:59]} Ne4 {[%emt 0:01:12]} 14. Rh3 {[%emt 0:04:15]} h6 {[%emt 0:03:43]} 15. f3 {[%emt 0:00:19]} hxg5 {[%emt 0:01:30]} 16. fxe4 Bxe4 {[%emt 0:02:21]} 17. Bd3 {[%emt 0:00:28]} Bxd3 {[%emt 0:00:48]} 18. Qxd3 {[%emt 0:00:21]} g4 {[%emt 0:00:38]} 19. Rh1 {[%emt 0:02:09]} f4 {[%emt 0:09:57]} 20. e4 {[%emt 0:03:04]} Qh5 {[%emt 0:04:22]} 21. Qe2 {[%emt 0:04:37]} Nf6 {[%emt 0:04:24]} 22. d5 {[%emt 0:01:47]} Rf7 {[%emt 0:00:51]} 23. Qd3 {[%emt 0:00:59]} Qh6 {[%emt 0:01:59]} 24. Kc2 {[%emt 0:02:48]} Raf8 {[%emt 0:01:24]} 25. Ne2 {[%emt 0:04:15]} Qg6 {[%emt 0:00:58]} 26. Rde1 {[%emt 0:03:49]} Qxe4 {[%emt 0:01:40]} 27. Qxe4 {[%emt 0:09:46]} Nxe4 {[%emt 0:00:15]} 28. Nc1 {[%emt 0:03:05]} Nc5 {[%emt 0:00:40]} 29. Nd3 {[%emt 0:03:32]} Nxd3 {[%emt 0:00:33]} 30. Kxd3 {[%emt 0:00:02]} Kh7 {[%emt 0:02:19]} 31. Re4 {[%emt 0:04:53]} g3 $19 {[%emt 0:02:07]} 32. Rg1 {[%emt 0:03:02]} Kg6 {[%emt 0:01:01]} 33. Ke2 Rh8 34. Rh1 {[%emt 0:01:31]} Kf5 {[%emt 0:01:42]} 35. Kf3 {[%emt 0:00:12]} g5 {[%emt 0:00:22]} 0-1

[Event "Portugal Honour 2021"]
[Site "Fatima"]
[Date "2021.04.11"]
[Round "8.4"]
[White "Basilio, Rodrigo"]
[Black "Bartolo, Filipe"]
[Result "1-0"]
[ECO "C54"]
[WhiteElo "1849"]
[BlackElo "1876"]
[Annotator "NA RC"]
[PlyCount "75"]
[EventDate "2021.04.06"]
[EventType "tourn"]
[EventCountry "POR"]
[SourceTitle "playchess.com"]
[Source "ChessBase"]
[SourceQuality "1"]
[TimeControl "5400+30"]

1. e4 {[%emt 0:01:11]} e5 {[%emt 0:05:05]} 2. Nf3 {[%emt 0:00:38]} Nc6 {[%emt 0:00:05]} 3. Bc4 {[%emt 0:00:07]} Bc5 {[%emt 0:00:04]} 4. d3 {[%emt 0:00:07]} Nf6 {[%emt 0:00:32]} 5. Nbd2 {[%emt 0:00:23]} O-O {[%emt 0:00:20]} 6. O-O {[%emt 0:00:05]} d6 {[%emt 0:02:53]} 7. c3 {[%emt 0:00:29]} a6 {[%emt 0:00:52]} 8. Bb3 {[%emt 0:00:06]} h6 {[%emt 0:00:50]} 9. h3 {[%emt 0:00:42]} Be6 {[%emt 0:00:05]} 10. Re1 {[%emt 0:07:53]} Re8 {[%emt 0:00:19]} 11. Bc2 {[%emt 0:26:14]} Ba7 {[%emt 0:18:27]} 12. Nh2 {[%emt 0:03:00]} Ne7 {[%emt 0:04:06]} 13. Ndf1 {[%emt 0:13:01]} Ng6 {[%emt 0:00:58]} 14. d4 {[%emt 0:01:53]} d5 {[%emt 0:09:56]} 15. exd5 {[%emt 0:01:54]} Bxd5 {[%emt 0:05:23]} 16. Bxg6 {[%emt 0:00:33]} fxg6 {[%emt 0:00:06]} 17. dxe5 {[%emt 0:04:26]} Ne4 {[%emt 0:01:28]} 18. Be3 {[%emt 0:07:15]} Bxe3 {[%emt 0:04:17]} 19. Nxe3 {[%emt 0:00:24]} Bc6 {[%emt 0:00:39]} 20. Qd4 {[%emt 0:13:47]} Qh4 {[%emt 0:02:27]} 21. Nd5 {[%emt 0:02:00]} Rxe5 $2 {[%emt 0:01:24] [#]} (21... Qd8) 22. Nf3 $18 {[%emt 0:01:37] Double Attack} Rxd5 {[%emt 0:01:26]} 23. Qxd5+ {[%emt 0:01:48]} Bxd5 {[%emt 0:00:21]} 24. Nxh4 {[%emt 0:00:20]} g5 {[%emt 0:00:14]} 25. Ng6 {[%emt 0:02:53]} Kh7 {[%emt 0:02:11]} 26. Ne7 {[%emt 0:00:19]} Nf6 {[%emt 0:00:16]} 27. Nxd5 {[%emt 0:00:27]} Nxd5 {[%emt 0:00:05]} 28. Rad1 {[%emt 0:00:35]} Nb6 {[%emt 0:00:17]} 29. Re7 {[%emt 0:00:05]} Rc8 {[%emt 0:00:05]} 30. b3 {[%emt 0:00:55]} Kg6 {[%emt 0:00:05]} 31. c4 {[%emt 0:00:08]} Kf6 {[%emt 0:00:06]} 32. Rde1 {[%emt 0:00:03]} Kg6 {[%emt 0:00:46]} 33. R1e6+ {[%emt 0:00:22]} Kh7 {[%emt 0:00:16]} 34. Rf7 {[%emt 0:00:36]} Na8 {[%emt 0:00:21]} 35. Ree7 {[%emt 0:01:15]} Rg8 {[%emt 0:00:06]} 36. g3 {[%emt 0:00:24]} Nb6 {[%emt 0:00:43]} 37. Rxc7 {[%emt 0:00:11]} Nc8 {[%emt 0:00:09]} 38. c5 {[%emt 0:00:58]} 1-0

[Event "Portugal Honour 2021"]
[Site "Fatima"]
[Date "2021.04.11"]
[Round "8.5"]
[White "Pina, Tiago"]
[Black "Sarabando, Rodrigo"]
[Result "1-0"]
[ECO "E81"]
[WhiteElo "1843"]
[BlackElo "1682"]
[Annotator "NA RC"]
[PlyCount "39"]
[EventDate "2021.04.06"]
[EventType "tourn"]
[EventCountry "POR"]
[SourceTitle "playchess.com"]
[Source "ChessBase"]
[SourceQuality "1"]
[TimeControl "5400+30"]

1. d4 {[%emt 0:00:26]} Nf6 {[%emt 0:00:01]} 2. c4 {[%emt 0:00:04]} g6 {[%emt 0:00:16]} 3. Nc3 {[%emt 0:00:04]} Bg7 {[%emt 0:00:15]} 4. e4 {[%emt 0:00:15]} d6 {[%emt 0:00:50]} 5. f3 {[%emt 0:00:05]} O-O {[%emt 0:00:40]} 6. Nge2 {[%emt 0:00:05]} e5 {[%emt 0:01:11]} 7. Bg5 {[%emt 0:00:17]} c6 {[%emt 0:02:02]} 8. Qd2 {[%emt 0:00:10]} Re8 {[%emt 0:01:34]} 9. d5 {[%emt 0:00:18]} c5 {[%emt 0:01:09]} 10. g4 {[%emt 0:00:36]} Nbd7 {[%emt 0:05:10]} 11. Ng3 {[%emt 0:00:19]} a6 {[%emt 0:01:34]} 12. a4 {[%emt 0:02:35]} Rb8 {[%emt 0:03:02]} 13. Be2 {[%emt 0:00:44]} Nf8 {[%emt 0:02:59]} 14. h4 {[%emt 0:01:42]} Bd7 $18 {[%emt 0:02:38]} 15. h5 {[%emt 0:02:17]} Qa5 {[%emt 0:02:51]} 16. h6 {[%emt 0:03:49]} Bh8 {[%emt 0:00:47]} 17. Kf2 {[%emt 0:02:46]} Ra8 {[%emt 0:04:01]} 18. Qc1 {[%emt 0:20:54]} Reb8 {[%emt 0:06:03]} 19. Nf5 {[%emt 0:04:15]} Qc7 {[%emt 0:04:08]} 20. Ne7# {[%emt 0:00:19]} 1-0

[Event "Portugal Honour 2021"]
[Site "Fatima"]
[Date "2021.04.12"]
[Round "9.6"]
[White "Sarabando, Rodrigo"]
[Black "Goncalves, Carlos"]
[Result "1-0"]
[ECO "D81"]
[WhiteElo "1682"]
[BlackElo "1600"]
[Annotator "NA RC"]
[PlyCount "107"]
[EventDate "2021.04.06"]
[EventType "tourn"]
[EventCountry "POR"]
[SourceTitle "playchess.com"]
[Source "ChessBase"]
[SourceQuality "1"]
[TimeControl "5400+30"]

1. d4 {[%emt 0:00:00]} Nf6 {[%emt 0:04:46]} 2. c4 {[%emt 0:00:00]} g6 {[%emt 0:00:24]} 3. Nc3 {[%emt 0:00:00]} d5 {[%emt 0:00:27]} 4. Qb3 {[%emt 0:00:06]} dxc4 {[%emt 0:01:11]} 5. Qxc4 {[%emt 0:00:07]} Bg7 {[%emt 0:02:30]} 6. e4 {[%emt 0:00:34]} O-O {[%emt 0:04:10]} 7. Be2 {[%emt 0:00:16]} a6 {[%emt 0:04:29]} 8. Bf4 {[%emt 0:01:04]} Ne8 {[%emt 0:01:04]} 9. Rd1 {[%emt 0:00:34]} c6 {[%emt 0:03:06]} 10. Nf3 {[%emt 0:03:07]} Nd6 {[%emt 0:01:41]} 11. Qd3 {[%emt 0:00:09]} Bg4 {[%emt 0:04:04]} 12. O-O {[%emt 0:01:07]} Qa5 {[%emt 0:04:25]} 13. h3 {[%emt 0:05:37]} Bd7 {[%emt 0:06:43]} 14. Qe3 {[%emt 0:01:31]} b5 {[%emt 0:06:44]} 15. b3 {[%emt 0:02:04]} Qb6 {[%emt 0:03:04]} 16. Bg5 {[%emt 0:03:10]} f6 {[%emt 0:02:39]} 17. Bf4 {[%emt 0:01:54]} Nf7 {[%emt 0:06:17]} 18. e5 {[%emt 0:04:09]} fxe5 {[%emt 0:00:48]} 19. Nxe5 {[%emt 0:00:20]} Nxe5 {[%emt 0:00:46]} 20. Bxe5 {[%emt 0:00:08]} Rf7 {[%emt 0:02:11]} 21. Bxg7 {[%emt 0:00:57]} Kxg7 {[%emt 0:00:58]} 22. Qe5+ {[%emt 0:00:31]} Kg8 {[%emt 0:00:26]} 23. Ne4 {[%emt 0:00:21]} Qd8 {[%emt 0:02:41]} 24. Nc5 {[%emt 0:01:13]} Bc8 {[%emt 0:04:38]} 25. Bf3 {[%emt 0:01:12]} Rxf3 {[%emt 0:01:33]} 26. gxf3 {[%emt 0:00:08]} Bxh3 {[%emt 0:00:22]} 27. Rfe1 {[%emt 0:00:14]} Nd7 {[%emt 0:00:49]} 28. Qxe7 {[%emt 0:01:11]} Nf8 {[%emt 0:07:19]} 29. Qxd8 {[%emt 0:01:43]} Rxd8 30. Nxa6 Ra8 {[%emt 0:02:30]} 31. Nb4 {[%emt 0:00:39]} Rc8 {[%emt 0:03:49]} 32. Rc1 {[%emt 0:00:26]} Rc7 {[%emt 0:01:07]} 33. Rxc6 {[%emt 0:00:16]} Rf7 {[%emt 0:02:18]} 34. Re3 {[%emt 0:00:56]} h5 35. a4 {[%emt 0:00:02]} bxa4 {[%emt 0:01:02]} 36. bxa4 {[%emt 0:00:21]} Bd7 37. Ra6 Rf5 {[%emt 0:01:06]} 38. a5 {[%emt 0:01:25]} Rg5+ {[%emt 0:01:20]} 39. Kh2 Bb5 40. Ra8 {[%emt 0:01:45]} Bf1 {[%emt 0:01:28]} 41. Ree8 {[%emt 0:00:16]} Rf5 {[%emt 0:04:08]} 42. Rxf8+ {[%emt 0:00:48]} Rxf8 {[%emt 0:00:16]} 43. Rxf8+ {[%emt 0:00:00]} Kxf8 {[%emt 0:03:03]} 44. a6 {[%emt 0:00:00]} Bxa6 {[%emt 0:00:15]} 45. Nxa6 {[%emt 0:00:10]} Ke7 {[%emt 0:00:19]} 46. Nb4 {[%emt 0:00:30]} Kd6 {[%emt 0:00:30]} 47. f4 {[%emt 0:00:17]} Ke6 {[%emt 0:00:12]} 48. d5+ {[%emt 0:00:09]} Kf6 {[%emt 0:00:25]} 49. Kg3 {[%emt 0:00:13]} Kf5 {[%emt 0:00:19]} 50. Nd3 {[%emt 0:00:52]} Kf6 {[%emt 0:00:53]} 51. Ne5 {[%emt 0:00:08]} g5 {[%emt 0:00:29]} 52. fxg5+ {[%emt 0:00:24]} Kxe5 {[%emt 0:00:03]} 53. g6 {[%emt 0:00:08]} Kf6 {[%emt 0:00:09]} 54. d6 {[%emt 0:00:06]} 1-0

[Event "Portugal Honour 2021"]
[Site "Fatima"]
[Date "2021.04.12"]
[Round "9.7"]
[White "Bartolo, Filipe"]
[Black "Pina, Tiago"]
[Result "1/2-1/2"]
[ECO "B32"]
[WhiteElo "1876"]
[BlackElo "1843"]
[Annotator "NA RC"]
[PlyCount "25"]
[EventDate "2021.04.06"]
[EventType "tourn"]
[EventCountry "POR"]
[SourceTitle "playchess.com"]
[Source "ChessBase"]
[SourceQuality "1"]
[TimeControl "5400+30"]

1. e4 {[%emt 0:01:25]} c5 {[%emt 0:00:00]} 2. Nf3 {[%emt 0:00:03]} Nc6 {[%emt 0:00:00]} 3. d4 {[%emt 0:00:03]} cxd4 {[%emt 0:00:00]} 4. Nxd4 {[%emt 0:00:23]} e5 {[%emt 0:00:04]} 5. Nb5 {[%emt 0:00:05]} a6 {[%emt 0:00:05]} 6. Nd6+ {[%emt 0:01:20]} Bxd6 {[%emt 0:00:09]} 7. Qxd6 {[%emt 0:00:06]} Qe7 {[%emt 0:00:07]} 8. Qxe7+ {[%emt 0:10:58]} Ngxe7 {[%emt 0:00:08]} 9. Nc3 {[%emt 0:00:05]} Nb4 {[%emt 0:00:11]} 10. Bd3 {[%emt 0:01:57]} d5 {[%emt 0:00:13]} 11. exd5 {[%emt 0:00:57]} Bf5 {[%emt 0:00:12]} 12. Ne4 {[%emt 0:12:20]} Nxd3+ {[%emt 0:00:05]} 13. cxd3 {[%emt 0:00:13]} 1/2-1/2

[Event "Portugal Honour 2021"]
[Site "Fatima"]
[Date "2021.04.12"]
[Round "9.8"]
[White "Santos, Ruben"]
[Black "Basilio, Rodrigo"]
[Result "0-1"]
[ECO "E73"]
[WhiteElo "1759"]
[BlackElo "1849"]
[Annotator "NA RC"]
[PlyCount "90"]
[EventDate "2021.04.06"]
[EventType "tourn"]
[EventCountry "POR"]
[SourceTitle "playchess.com"]
[Source "ChessBase"]
[SourceQuality "1"]
[TimeControl "5400+30"]

1. d4 {[%emt 0:00:00]} Nf6 {[%emt 0:00:29]} 2. c4 {[%emt 0:00:00]} g6 {[%emt 0:00:08]} 3. Nc3 {[%emt 0:00:00]} Bg7 {[%emt 0:00:05]} 4. e4 {[%emt 0:00:00]} d6 {[%emt 0:00:04]} 5. Be2 {[%emt 0:00:00]} O-O {[%emt 0:00:06]} 6. Bg5 {[%emt 0:00:00]} h6 {[%emt 0:00:39]} 7. Be3 {[%emt 0:00:06]} c5 {[%emt 0:03:29]} 8. f3 {[%emt 0:03:29]} cxd4 {[%emt 0:07:37]} 9. Bxd4 {[%emt 0:00:34]} Nc6 {[%emt 0:01:19]} 10. Be3 {[%emt 0:00:17]} Qa5 {[%emt 0:16:26]} 11. g4 {[%emt 0:01:15]} h5 {[%emt 0:07:20]} 12. g5 {[%emt 0:01:54]} ({White should try} 12. h3 $15) 12... Nd7 {[%emt 0:03:25]} 13. Qd2 {[%emt 0:00:03]} Nc5 {[%emt 0:01:49]} 14. Rb1 {[%emt 0:04:53]} (14. Rc1 $142) 14... Bxc3 {[%emt 0:17:07]} 15. bxc3 {[%emt 0:00:35]} a6 {[%emt 0:01:33]} 16. Bxc5 {[%emt 0:15:48]} Qxc5 {[%emt 0:01:43]} 17. f4 {[%emt 0:01:25]} Be6 {[%emt 0:05:35]} 18. Rxb7 {[%emt 0:11:22]} Bxc4 {[%emt 0:03:48]} 19. Nf3 {[%emt 0:07:48]} Rab8 {[%emt 0:02:33]} 20. Rxb8 {[%emt 0:06:01]} Rxb8 {[%emt 0:00:04]} 21. Qc1 {[%emt 0:00:35]} Bxa2 {[%emt 0:00:43]} 22. Nd2 {[%emt 0:03:37]} Qe3 {[%emt 0:03:20]} 23. Qa1 {[%emt 0:01:04]} Be6 {[%emt 0:06:38]} 24. Rf1 {[%emt 0:10:52]} Bg4 {[%emt 0:10:07]} 25. Qxa6 {[%emt 0:04:33]} Nb4 {[%emt 0:04:14]} 26. cxb4 {[%emt 0:04:28]} Rc8 {[%emt 0:00:02]} 27. Qxc8+ {[%emt 0:05:52]} Bxc8 {[%emt 0:00:01]} 28. Rf3 {[%emt 0:00:15]} Qg1+ {[%emt 0:00:02]} 29. Bf1 {[%emt 0:04:39]} Qxh2 {[%emt 0:01:01]} 30. b5 {[%emt 0:00:07]} Qg1 {[%emt 0:00:21]} 31. Rf2 {[%emt 0:00:26]} Qg3 {[%emt 0:00:13]} 32. Be2 {[%emt 0:03:45]} h4 {[%emt 0:01:12]} 33. Nf1 {[%emt 0:00:34]} Qc3+ {[%emt 0:00:04]} 34. Kd1 {[%emt 0:00:14]} Qd4+ {[%emt 0:00:16]} 35. Ke1 {[%emt 0:01:33]} Qxe4 {[%emt 0:00:02]} 36. Nd2 {[%emt 0:06:44]} Qb4 {[%emt 0:00:40]} 37. Rf3 {[%emt 0:02:04]} h3 {[%emt 0:01:00]} 38. Rb3 {[%emt 0:01:18]} Qxf4 {[%emt 0:00:01]} 39. Bf3 {[%emt 0:00:21]} h2 {[%emt 0:00:02]} 40. Bh1 {[%emt 0:00:51]} Qxg5 {[%emt 0:00:33]} 41. Ke2 {[%emt 0:00:35]} Be6 {[%emt 0:01:14]} (41... Qg1 $142 42. Bc6 Bg4+ 43. Kd3 Qe1 44. Kc3 Bf5 45. Bf3 Qe3+ 46. Kb4 Qxd2+ 47. Rc3 Be6 48. Bh1 Qd4+ 49. Rc4 Bxc4 50. Ka5 Bd5 51. Bxd5 Qxd5 52. Kb4 h1=Q 53. Ka5 Qa1+ 54. Kb6 Qc5+ 55. Kb7 Qaa7#) 42. Rb1 {[%emt 0:00:20]} Bd5 {[%emt 0:00:02]} 43. Nf3 {[%emt 0:00:38]} Qf4 {[%emt 0:00:19]} 44. Nd2 {[%emt 0:00:31]} Bxh1 $19 {[%emt 0:00:33]} 45. Rxh1 {[%emt 0:00:06]} Qb4 {[%emt 0:00:15]} 0-1